bitfinex-derivatives/quotes_BTCF0:USTF0_20241125
["timestamp","ask_amount","ask_price","bid_price","bid_amount"]
[1732539959682,0.051097,97771.0,97770.0,0.051096]
[1732539960774,0.051097,97771.0,97764.0,0.15096]
[1732539960775,0.3608,97775.0,97774.0,0.051094]
[1732539960988,0.0015345,97783.0,97764.0,0.15096]
[1732539961180,0.0015345,97783.0,97781.0,0.051091]
[1732539961688,0.0015345,97783.0,97782.0,0.0304]
[1732539962887,0.05109,97783.0,97782.0,0.08149]
[1732539963091,0.41189,97783.0,97782.0,0.0304]
[1732539963279,0.05109,97783.0,97782.0,0.0304]
[1732539963785,0.051089,97785.0,97783.0,0.05109]
[1732539964286,0.051087,97789.0,97788.0,0.051086]
[1732539964480,0.051087,97789.0,97782.0,0.02914768]
[1732539964481,0.05109,97784.0,97783.0,0.05109]
[1732539964675,0.41189,97784.0,97783.0,0.05109]
[1732539964889,0.3612,97784.0,97783.0,0.05109]
[1732539965103,0.0004,97784.0,97783.0,0.05109]
[1732539965481,0.0004,97784.0,97783.0,0.35789]
[1732539965690,0.051081,97799.0,97798.0,0.051082]
[1732539965983,0.051081,97799.0,97798.0,0.051882]
[1732539966888,0.051081,97799.0,97798.0,0.0008]
[1732539968427,0.051081,97799.0,97784.0,0.0319]
[1732539968428,0.051097,97770.0,97762.0,0.0511]
[1732539968580,0.49107118,97780.0,97763.0,0.0511]
[1732539968781,0.051099,97766.0,97764.0,0.0313]
[1732539969589,0.34032,97780.0,97766.0,0.051098]
[1732539969786,0.34032,97780.0,97764.0,0.0313]
[1732539969787,0.051092,97779.0,97764.0,0.0313]
[1732539969983,0.34032,97780.0,97764.0,0.0313]
[1732539970390,0.34032,97780.0,97764.0,0.1823]
[1732539970689,0.34032,97780.0,97765.0,0.02046196]
[1732539970989,0.051098,97767.0,97765.0,0.02046196]
[1732539971191,0.34032,97780.0,97765.0,0.02046196]
[1732539971192,0.051095,97774.0,97765.0,0.02046196]
[1732539971496,0.051095,97774.0,97773.0,0.0004]
[1732539971683,0.34032,97780.0,97773.0,0.0004]
[1732539971886,0.051092,97780.0,97774.0,0.051094]
[1732539972085,0.051092,97780.0,97779.0,0.0004]
[1732539972429,0.3608,97787.0,97779.0,0.0004]
[1732539972594,0.411888,97787.0,97780.0,0.151]
[1732539972799,0.3608,97787.0,97786.0,0.0004]
[1732539972986,0.3608,97803.0,97786.0,0.0004]
[1732539972987,0.051081,97800.0,97793.0,0.051084]
[1732539973184,0.051082,97799.0,97794.0,0.0308]
[1732539973387,0.3608,97803.0,97794.0,0.0308]
[1732539973783,0.3608,97803.0,97795.0,0.15096]
[1732539973996,0.3608,97803.0,97799.0,0.051081]
[1732539974196,0.3608,97803.0,97801.0,0.05108]
[1732539974394,0.411879,97803.0,97801.0,0.05108]
[1732539974599,0.36136001,97820.0,97795.0,0.15096]
[1732539974799,0.051075,97813.0,97811.0,0.051075]
[1732539975099,0.051075,97813.0,97800.0,0.15075118]
[1732539975100,0.00052001,97826.0,97808.0,0.15096]
[1732539975294,0.05108,97802.0,97800.0,0.3608]
[1732539975485,0.051077,97808.0,97803.0,0.051079]
[1732539975898,0.3608,97808.0,97800.0,0.51176]
[1732539976099,0.3608,97808.0,97807.0,0.0004]
[1732539976100,0.411877,97808.0,97807.0,0.0004]
[1732539976997,0.411877,97808.0,97789.0,0.02798218]
[1732539976998,0.051086,97790.0,97789.0,0.02798218]
[1732539977197,0.051089,97784.0,97782.0,0.04897659]
[1732539977591,0.051089,97784.0,97782.0,0.02046196]
[1732539978302,0.051089,97784.0,97783.0,0.15096]
[1732539979098,0.051089,97784.0,97782.0,0.02046196]
[1732539979099,0.411889,97784.0,97782.0,0.02046196]
[1732539979301,0.411889,97784.0,97783.0,0.00046876]
[1732539979801,0.051089,97784.0,97783.0,0.00046876]
[1732539979992,0.411889,97784.0,97783.0,0.00046876]
[1732539980702,0.718689,97784.0,97783.0,0.00046876]
[1732539980904,0.869649,97784.0,97783.0,0.00046876]
[1732539981397,0.051098,97767.0,97766.0,0.0490252]
[1732539981602,0.051098,97767.0,97766.0,0.02046196]
[1732539984607,0.3608,97771.0,97770.0,0.051097]
[1732539985100,0.411896,97771.0,97770.0,0.0004]
[1732539986396,0.3608,97784.0,97770.0,0.0004]
[1732539986597,0.3608,97784.0,97776.0,0.051093]
[1732539986792,0.05109,97783.0,97781.0,0.051091]
[1732539986993,0.3608,97791.0,97777.0,0.0307]
[1732539987200,0.3608,97791.0,97778.0,0.0306]
[1732539987404,0.411886,97791.0,97789.0,0.051086]
[1732539987898,0.3608,97791.0,97783.0,0.0004]
[1732539988148,0.051087,97788.0,97783.0,0.0004]
[1732539988298,0.051088,97787.0,97786.0,0.051088]
[1732539988494,0.051089,97785.0,97783.0,0.0004]
[1732539988814,0.0004,97784.0,97783.0,0.0004]
[1732539988995,0.051094,97775.0,97766.0,0.02046196]
[1732539989200,0.411898,97767.0,97766.0,0.02046196]
[1732539989405,0.411898,97767.0,97751.0,0.3608]
[1732539989406,0.36160001,97767.0,97751.0,0.3608]
[1732539989699,0.051105,97754.0,97752.0,0.14936]
[1732539990098,0.051106,97752.0,97751.0,0.0307]
[1732539990298,0.051106,97752.0,97750.0,0.02053617]
[1732539993914,0.3608,97751.0,97722.0,0.3931]
[1732539994110,0.051115,97735.0,97723.0,0.0304]
[1732539994305,0.051121,97724.0,97723.0,0.0304]
[1732539994515,0.051121,97724.0,97723.0,0.05085825]
[1732539994809,0.05112,97725.0,97723.0,0.05085825]
[1732539995007,7.429e-05,97724.0,97723.0,0.20025825]
[1732539995212,0.05119529,97724.0,97723.0,0.02045825]
[1732539995407,0.02919529,97724.0,97723.0,0.02045825]
[1732539996001,0.00993637,97724.0,97723.0,0.02045825]
[1732539996322,0.00993638,97724.0,97723.0,0.52925156]
[1732539996511,0.3608,97730.0,97728.0,0.051118]
[1732539996807,0.051115,97734.0,97731.0,0.051116]
[1732539997013,0.00996276,97733.0,97731.0,0.051116]
[1732539997311,0.00996276,97733.0,97732.0,0.00127231]
[1732539997510,0.00996276,97733.0,97732.0,0.15067231]
[1732539997728,1e-08,97735.0,97734.0,0.051115]
[1732539998016,0.3608,97758.0,97733.0,0.30696]
[1732539998213,0.051109,97747.0,97745.0,0.00127231]
[1732539999315,0.051109,97747.0,97731.0,0.86212595]
[1732539999316,0.051109,97747.0,97731.0,0.02848595]
[1732539999505,0.051121,97724.0,97718.0,0.051124]
[1732539999753,0.051121,97724.0,97714.0,0.0317]
[1732540000011,0.051121,97724.0,97718.0,0.1494]
[1732540000202,0.051121,97724.0,97714.0,0.0317]
[1732540000403,0.3608,97729.0,97725.0,0.05112]
[1732540000609,0.051114,97737.0,97722.0,0.3608]
[1732540000843,0.051114,97737.0,97730.0,0.3608]
[1732540001113,0.051116,97732.0,97729.0,0.200518]
[1732540001318,0.051116,97734.0,97729.0,0.200518]
[1732540001520,0.051112,97740.0,97729.0,0.200518]
[1732540001811,0.3608,97741.0,97729.0,0.1494]
[1732540001812,0.051117,97731.0,97729.0,0.1494]
[1732540002213,0.3608,97741.0,97731.0,0.051117]
[1732540002413,0.051115,97735.0,97729.0,0.1494]
[1732540002604,0.051115,97735.0,97732.0,0.051116]
[1732540002809,0.411912,97741.0,97729.0,0.1494]
[1732540003115,0.411912,97741.0,97740.0,0.051112]
[1732540003116,0.3608,97741.0,97740.0,0.051112]
[1732540003615,0.051113,97739.0,97734.0,0.051115]
[1732540003812,0.3608,97741.0,97739.0,0.051112]
[1732540004305,0.411906,97753.0,97750.0,0.051107]
[1732540004510,0.051106,97752.0,97751.0,0.0327]
[1732540004917,0.051106,97752.0,97730.0,0.23079531]
[1732540004918,0.3608,97753.0,97729.0,0.3608]
[1732540005120,0.051114,97737.0,97735.0,0.051115]
[1732540005516,0.3608,97753.0,97735.0,0.051115]
[1732540005710,0.051114,97737.0,97735.0,0.051115]
[1732540005915,0.051115,97734.0,97733.0,0.0325]
[1732540006317,0.3608,97737.0,97733.0,0.0325]
[1732540006620,0.051114,97736.0,97735.0,0.051115]
[1732540007207,0.3608,97737.0,97733.0,0.083616]
[1732540007418,0.051115,97735.0,97734.0,0.1494]
[1732540007915,0.051115,97734.0,97733.0,0.0325]
[1732540008140,0.051115,97734.0,97733.0,0.1819]
[1732540008825,0.051115,97734.0,97733.0,0.0325]
[1732540009115,0.051115,97734.0,97733.0,0.02047024]
[1732540009925,0.46654296,97734.0,97701.0,0.3608]
[1732540010114,0.051131,97706.0,97704.0,0.051131]
[1732540010422,0.051132,97702.0,97701.0,0.3608]
[1732540010615,0.06134338,97702.0,97701.0,0.51024]
[1732540011723,0.06134338,97702.0,97701.0,0.3608]
[1732540011924,0.06134338,97702.0,97700.0,0.10009266]
[1732540012129,0.01021138,97701.0,97700.0,0.10009266]
[1732540013809,0.051132,97702.0,97700.0,0.10009266]
[1732540014016,0.01006609,97701.0,97700.0,0.10009266]
[1732540015320,0.051132,97702.0,97700.0,0.15122566]
[1732540015534,0.00998656,97701.0,97700.0,0.15122566]
[1732540015721,0.00998656,97701.0,97700.0,0.10009266]
[1732540016824,0.051133,97702.0,97700.0,0.24909266]
[1732540017018,0.00998656,97701.0,97700.0,0.24909266]
[1732540017720,0.0101928,97701.0,97700.0,0.10009266]
[1732540019726,0.051133,97702.0,97700.0,0.10009266]
[1732540020028,0.37106903,97701.0,97700.0,0.10009266]
[1732540020221,0.37112528,97701.0,97700.0,0.10009266]
[1732540020525,0.42225828,97701.0,97700.0,0.10009266]
[1732540021519,0.42225828,97701.0,97700.0,0.06809687]
[1732540021916,0.411933,97701.0,97700.0,0.06809687]
[1732540022117,0.42201519,97701.0,97700.0,0.06809687]
[1732540024029,0.42213697,97701.0,97700.0,0.06809687]
[1732540024241,0.72921697,97701.0,97700.0,0.06809687]
[1732540024725,0.72921697,97701.0,97700.0,0.01304787]
[1732540025025,0.38800346,97701.0,97683.0,0.03184551]
[1732540025226,0.051141,97684.0,97683.0,0.03184551]
[1732540025534,0.06134497,97684.0,97683.0,0.03184551]
[1732540026028,0.06143298,97684.0,97683.0,0.03184551]
[1732540026339,0.06209891,97684.0,97683.0,0.03184551]
[1732540027133,0.01095791,97684.0,97683.0,0.08298751]
[1732540027329,0.01095791,97684.0,97683.0,0.11598751]
[1732540029218,0.01095791,97684.0,97683.0,0.06484551]
[1732540030520,0.01031227,97684.0,97683.0,0.06484551]
[1732540031123,0.01031227,97684.0,97683.0,0.11598751]
[1732540031329,0.01031227,97684.0,97683.0,0.14678751]
[1732540032120,0.00153647,97704.0,97683.0,0.09564551]
[1732540032326,0.051132,97702.0,97695.0,0.051135]
[1732540032531,0.051132,97702.0,97696.0,0.0317]
[1732540032833,0.00153647,97704.0,97697.0,0.051134]
[1732540033135,0.411933,97701.0,97697.0,0.051134]
[1732540033434,0.411933,97701.0,97696.0,0.0317]
[1732540033435,0.051134,97698.0,97696.0,0.0317]
[1732540033844,0.3608,97701.0,97696.0,0.0317]
[1732540034037,0.00153647,97704.0,97696.0,0.0317]
[1732540034038,0.00153647,97704.0,97702.0,0.051132]
[1732540034228,0.00153647,97704.0,97696.0,0.18074]
[1732540034445,0.051133,97701.0,97697.0,0.051134]
[1732540034632,0.051134,97699.0,97696.0,0.20938334]
[1732540034937,0.051134,97698.0,97696.0,0.20938334]
[1732540035827,0.051134,97698.0,97696.0,0.18074]
[1732540036231,0.051134,97698.0,97696.0,0.0317]
[1732540037934,0.051134,97698.0,97697.0,0.0204762]
[1732540040025,0.00153647,97704.0,97702.0,0.051132]
[1732540040026,0.05266747,97704.0,97702.0,0.051132]
[1732540041232,0.05266747,97704.0,97697.0,0.0204762]
[1732540041233,0.051134,97699.0,97697.0,0.0204762]
[1732540041756,0.358214,97699.0,97697.0,0.0204762]
[1732540042334,0.051134,97699.0,97697.0,0.0204762]
[1732540042930,0.00153647,97704.0,97697.0,0.0204762]
[1732540043128,0.051134,97698.0,97697.0,0.0204762]
[1732540044233,0.02735437,97698.0,97689.0,0.10060843]
[1732540044540,0.051135,97696.0,97695.0,0.051136]
[1732540044838,0.02735437,97696.0,97690.0,0.14904]
[1732540045036,0.00153647,97704.0,97690.0,0.14904]
[1732540045037,0.051132,97703.0,97690.0,0.14904]
[1732540045236,0.0613881,97702.0,97690.0,0.14904]
[1732540045542,0.0102561,97701.0,97695.0,0.02047419]
[1732540045736,0.051135,97697.0,97695.0,0.02047419]
[1732540045938,0.0102561,97696.0,97695.0,0.07161019]
[1732540046441,0.0102561,97696.0,97695.0,0.22037019]
[1732540046628,0.051132,97702.0,97701.0,0.051133]
[1732540046832,0.01026673,97702.0,97701.0,0.051133]
[1732540047087,0.01028897,97702.0,97696.0,0.3608]
[1732540047240,0.04183681,97718.0,97700.0,0.3608]
[1732540047444,0.04183681,97718.0,97712.0,0.3608]
[1732540047640,0.051126,97713.0,97712.0,0.3608]
[1732540048153,0.01809894,97713.0,97712.0,0.3608]
[1732540048437,0.04183681,97718.0,97712.0,0.3608]
[1732540048642,0.04183681,97718.0,97717.0,0.051124]
[1732540049751,0.27344022,97728.0,97718.0,0.051123]
[1732540050043,0.29153916,97729.0,97720.0,0.051123]
[1732540050252,0.01809894,97729.0,97718.0,0.10060843]
[1732540050435,0.01809894,97729.0,97724.0,0.05112]
[1732540051041,0.01809894,97729.0,97725.0,0.05112]
[1732540052039,0.01809894,97729.0,97720.0,0.3608]
[1732540052238,0.051119,97727.0,97720.0,0.3608]
[1732540052440,0.05112,97725.0,97720.0,0.3608]
[1732540052640,0.01809894,97729.0,97720.0,0.3608]
[1732540052834,0.051118,97728.0,97721.0,0.0313]
[1732540053032,0.06921694,97728.0,97721.0,0.0313]
[1732540053375,0.051118,97728.0,97721.0,0.082422]
[1732540053844,0.01809894,97729.0,97722.0,0.16128]
[1732540054144,0.05265051,97735.0,97724.0,0.05112]
[1732540054558,0.05265051,97735.0,97723.0,0.16128]
[1732540054559,0.00153551,97735.0,97725.0,0.10060843]
[1732540054739,0.00153551,97735.0,97730.0,0.051117]
[1732540055247,0.00153551,97735.0,97734.0,0.051115]
[1732540055542,0.0032,97750.0,97734.0,0.30696]
[1732540055745,0.0032,97750.0,97744.0,0.3608]
[1732540055938,0.0032,97750.0,97748.0,0.051108]
[1732540056138,0.0032,97750.0,97745.0,0.031]
[1732540056351,0.0032,97750.0,97746.0,0.051109]
[1732540056739,0.051109,97746.0,97745.0,0.031]
[1732540057572,0.0032,97750.0,97739.0,0.3608]
[1732540057744,0.0032,97750.0,97739.0,0.3893268]
[1732540057948,0.051112,97740.0,97739.0,0.3893268]
[1732540058939,0.051112,97740.0,97739.0,0.5506068]
[1732540060838,0.0032,97750.0,97739.0,0.5506068]
[1732540061049,0.0032,97750.0,97740.0,0.10060843]
[1732540061350,0.0032,97750.0,97745.0,0.051109]
[1732540061540,0.0032,97750.0,97746.0,0.19128]
[1732540062441,0.051108,97748.0,97746.0,0.16128]
[1732540062651,0.051107,97749.0,97747.0,0.16128]
[1732540064742,0.3608,97751.0,97739.0,0.40979368]
[1732540064743,0.051112,97741.0,97739.0,0.40979368]
[1732540065044,0.051112,97741.0,97740.0,0.16124]
[1732540067447,0.051112,97741.0,97739.0,0.40979368]
[1732540067847,0.051112,97741.0,97739.0,0.57103368]
[1732540068089,0.051112,97741.0,97739.0,0.271349]
[1732540068353,0.051112,97741.0,97702.0,0.16124]
[1732540068354,0.05112,97725.0,97702.0,0.16124]
[1732540068553,0.41192,97725.0,97705.0,0.05113]
[1732540068851,0.41192,97725.0,97710.0,0.02046626]
[1732540069153,0.44402,97725.0,97716.0,0.02823717]
[1732540069555,0.051135,97697.0,97696.0,0.051135]
[1732540069749,0.051135,97697.0,97696.0,0.212415]
[1732540069949,0.051135,97697.0,97696.0,0.24143669]
[1732540070655,0.05123511,97697.0,97696.0,0.24143669]
[1732540072953,0.00010011,97697.0,97696.0,0.24143669]
[1732540074154,0.00010011,97697.0,97696.0,0.60223669]
[1732540075156,0.00010011,97697.0,97696.0,0.38982169]
[1732540075453,0.00010011,97697.0,97696.0,0.55110169]
[1732540075661,0.00010011,97697.0,97696.0,0.38982169]
[1732540075955,0.00010011,97697.0,97696.0,0.55110169]
[1732540077149,0.05123511,97697.0,97696.0,0.55314169]
[1732540077343,0.05123511,97697.0,97696.0,0.38982169]
[1732540080658,0.00010011,97697.0,97696.0,0.44095669]
[1732540082246,0.00010011,97697.0,97696.0,0.38982169]
[1732540082445,0.00010011,97697.0,97696.0,0.55314169]
[1732540083258,0.00010011,97697.0,97696.0,0.60427669]
[1732540085156,0.05123511,97697.0,97696.0,0.55314169]
[1732540085961,0.05123511,97697.0,97696.0,0.19234169]
[1732540088457,0.05123511,97697.0,97696.0,0.02902169]
[1732540088660,0.00010011,97697.0,97695.0,0.16336]
[1732540088862,0.051135,97696.0,97695.0,0.16336]
[1732540089954,0.051136,97695.0,97694.0,0.02046626]
[1732540090257,0.411936,97695.0,97675.0,0.16336]
[1732540090459,0.411941,97684.0,97675.0,0.16336]
[1732540091276,0.411941,97684.0,97678.0,0.07161026]
[1732540091462,0.411941,97684.0,97678.0,0.18382626]
[1732540091663,0.411941,97684.0,97679.0,0.051144]
[1732540091861,0.411941,97684.0,97683.0,0.08298751]
[1732540092061,0.411941,97684.0,97683.0,0.11219082]
[1732540092252,0.411941,97684.0,97683.0,0.06104882]
[1732540093364,0.411941,97684.0,97683.0,5.1e-07]
[1732540094333,0.719061,97684.0,97683.0,5.1e-07]
[1732540095952,0.411941,97684.0,97683.0,5.1e-07]
[1732540096866,1.02152575,97684.0,97683.0,5.1e-07]
[1732540097161,0.719061,97684.0,97683.0,5.1e-07]
[1732540098553,0.71472453,97684.0,97683.0,5.1e-07]
[1732540098766,0.411941,97684.0,97683.0,5.1e-07]
[1732540106071,1.019061,97684.0,97674.0,9e-07]
[1732540106267,0.411946,97675.0,97674.0,9e-07]
[1732540106566,2.075746,97675.0,97674.0,9e-07]
[1732540106767,2.382906,97675.0,97674.0,9e-07]
[1732540107169,2.6830241,97675.0,97674.0,9e-07]
[1732540107363,2.71238449,97675.0,97674.0,9e-07]
[1732540108884,0.051157,97655.0,97654.0,0.01]
[1732540109162,0.051157,97655.0,97651.0,0.0290853]
[1732540109163,0.051158,97652.0,97651.0,0.0290853]
[1732540109368,0.051166,97637.0,97636.0,0.07164981]
[1732540109760,0.051566,97637.0,97636.0,0.07164981]
[1732540110857,0.051566,97637.0,97636.0,0.02048281]
[1732540111062,0.051566,97637.0,97622.0,0.001]
[1732540111063,0.30779944,97637.0,97622.0,0.001]
[1732540111258,0.30779944,97637.0,97614.0,0.0309]
[1732540111259,0.051173,97623.0,97616.0,0.3608]
[1732540111568,0.051577,97617.0,97616.0,0.3608]
[1732540112166,0.051577,97617.0,97616.0,0.3893695]
[1732540112371,0.0004,97617.0,97616.0,0.4405465]
[1732540112765,0.0004,97617.0,97616.0,0.6007465]
[1732540113064,0.0004,97617.0,97616.0,0.9080665]
[1732540113266,0.0004,97617.0,97616.0,0.7478665]
[1732540113775,0.0004,97617.0,97616.0,0.9080665]
[1732540114370,0.0004,97617.0,97616.0,0.9081065]
[1732540114675,0.0004,97617.0,97616.0,0.3893695]
[1732540117168,0.0004,97617.0,97616.0,0.0797465]
[1732540117365,0.051577,97617.0,97616.0,0.0797465]
[1732540117565,0.051577,97617.0,97616.0,0.0285695]
[1732540117871,0.051577,97617.0,97616.0,0.051177]
[1732540117872,0.0004,97617.0,97616.0,0.051177]
[1732540118466,0.051577,97617.0,97616.0,0.051177]
[1732540118670,0.0004,97617.0,97616.0,0.051177]
[1732540119275,0.051178,97615.0,97614.0,0.02881844]
[1732540119467,0.051181,97608.0,97607.0,0.00011454]
[1732540119672,0.051181,97608.0,97607.0,0.02898356]
[1732540119865,0.051581,97608.0,97607.0,0.05129654]
[1732540120065,0.051581,97608.0,97607.0,0.00011454]
[1732540121866,0.051581,97608.0,97607.0,0.05129654]
[1732540122677,0.051581,97608.0,97607.0,0.07178857]
[1732540122678,0.0004,97608.0,97607.0,0.07178857]
[1732540125069,0.0004,97608.0,97607.0,0.23206857]
[1732540125878,0.0004,97608.0,97607.0,0.07178857]
[1732540126575,0.0004,97608.0,97607.0,0.37914857]
[1732540126883,0.16039944,97637.0,97624.0,0.051172]
[1732540127072,0.16039944,97637.0,97625.0,0.082472]
[1732540127073,0.051172,97626.0,97625.0,0.082472]
[1732540127496,0.05117,97631.0,97626.0,0.051172]
[1732540127778,0.05117,97631.0,97626.0,0.114072]
[1732540127967,0.00011944,97637.0,97626.0,0.114072]
[1732540128168,0.051173,97624.0,97623.0,0.02833729]
[1732540128368,0.051179,97613.0,97608.0,0.0313]
[1732540128570,0.051179,97613.0,97610.0,0.02906264]
[1732540128972,0.051179,97613.0,97610.0,0.24052264]
[1732540129169,0.0004,97624.0,97610.0,0.18934264]
[1732540129371,0.051177,97617.0,97615.0,0.051178]
[1732540129592,0.0004,97624.0,97615.0,0.051178]
[1732540129968,0.0004,97624.0,97623.0,0.00014572]
[1732540130175,0.051573,97624.0,97623.0,0.00014572]
[1732540132078,0.051573,97624.0,97612.0,0.02049311]
[1732540132079,0.358893,97624.0,97612.0,0.02049311]
[1732540132280,0.411979,97613.0,97612.0,0.02049311]
[1732540132476,0.411979,97613.0,97607.0,0.16039454]
[1732540132477,0.051181,97608.0,97607.0,0.16039454]
[1732540132783,0.051181,97608.0,97607.0,0.00011454]
[1732540133379,0.051581,97608.0,97607.0,0.00011454]
[1732540133582,0.05170066,97608.0,97607.0,0.00011454]
[1732540134285,0.35906066,97608.0,97607.0,0.00011454]
[1732540134483,0.60081935,97608.0,97607.0,0.00011454]
[1732540134682,0.35906066,97608.0,97607.0,0.00011454]
[1732540135679,1.85906066,97608.0,97607.0,0.00011454]
[1732540135896,1.93194542,97608.0,97607.0,0.00011454]
[1732540136274,0.051185,97601.0,97600.0,0.1]
[1732540136474,0.411985,97601.0,97600.0,0.1]
[1732540136671,0.412385,97601.0,97600.0,0.1]
[1732540138099,0.412385,97601.0,97599.0,0.08373826]
[1732540138100,0.358545,97600.0,97599.0,0.08373826]
[1732540138282,0.358545,97600.0,97574.0,0.02049199]
[1732540138283,0.30736,97600.0,97574.0,0.02049199]
[1732540138485,0.051199,97575.0,97574.0,0.02049199]
[1732540138783,0.051599,97575.0,97574.0,0.02049199]
[1732540139283,0.00047983,97575.0,97564.0,0.0632]
[1732540139485,0.18152255,97565.0,97564.0,0.0632]
[1732540139682,0.13202255,97565.0,97564.0,0.114404]
[1732540139876,7.983e-05,97575.0,97564.0,0.114404]
[1732540139877,7.983e-05,97575.0,97574.0,0.051199]
[1732540140276,7.983e-05,97575.0,97574.0,0.05185328]
[1732540141589,0.05127883,97575.0,97574.0,0.05185328]
[1732540142285,0.05127883,97575.0,97574.0,0.00065428]
[1732540143883,0.05127883,97575.0,97574.0,0.05185328]
[1732540144481,0.41207883,97575.0,97574.0,0.00065428]
[1732540145339,0.41207883,97575.0,97574.0,2.8e-07]
[1732540145487,0.56743883,97575.0,97574.0,2.8e-07]
[1732540145795,2.06743883,97575.0,97574.0,2.8e-07]
[1732540147189,2.4381724,97575.0,97574.0,2.8e-07]
[1732540147423,2.37487883,97575.0,97574.0,2.8e-07]
[1732540147591,2.73818964,97575.0,97574.0,2.8e-07]
[1732540147795,2.67491883,97575.0,97574.0,2.8e-07]
[1732540148192,2.73917697,97575.0,97574.0,2.8e-07]
[1732540148492,2.67491883,97575.0,97574.0,2.8e-07]
[1732540149182,2.73759029,97575.0,97574.0,2.8e-07]
[1732540149586,2.67491883,97575.0,97574.0,2.8e-07]
[1732540149885,0.71951883,97575.0,97574.0,2.8e-07]
[1732540150090,0.56747883,97575.0,97574.0,2.8e-07]
[1732540151784,0.41207883,97575.0,97574.0,2.8e-07]
[1732540154086,0.41207883,97575.0,97574.0,0.05119928]
[1732540154296,0.05127883,97575.0,97574.0,2.8e-07]
[1732540154597,0.41207883,97575.0,97574.0,0.05119928]
[1732540155583,0.05127883,97575.0,97574.0,0.05119928]
[1732540156502,0.05127883,97575.0,97574.0,2.8e-07]
[1732540156503,0.51411883,97575.0,97574.0,2.8e-07]
[1732540157091,2.01411883,97575.0,97574.0,2.8e-07]
[1732540157397,2.07811169,97575.0,97574.0,2.8e-07]
[1732540158096,1.85871883,97575.0,97574.0,2.8e-07]
[1732540158394,0.27134624,97575.0,97574.0,2.8e-07]
[1732540158597,0.20667883,97575.0,97574.0,2.8e-07]
[1732540159091,0.05127883,97575.0,97574.0,2.8e-07]
[1732540159293,0.11583531,97575.0,97574.0,2.8e-07]
[1732540159797,0.42327531,97575.0,97574.0,2.8e-07]
[1732540161424,0.35765359,97575.0,97574.0,2.8e-07]
[1732540161591,0.05127883,97575.0,97574.0,2.8e-07]
[1732540161788,0.26286496,97575.0,97574.0,2.8e-07]
[1732540161994,0.11583531,97575.0,97574.0,2.8e-07]
[1732540162297,0.27123531,97575.0,97574.0,2.8e-07]
[1732540162599,0.11583531,97575.0,97574.0,2.8e-07]
[1732540162792,0.05127883,97575.0,97574.0,2.8e-07]
[1732540163189,0.11609348,97575.0,97574.0,2.8e-07]
[1732540163393,0.116094,97575.0,97574.0,2.8e-07]
[1732540164296,0.423534,97575.0,97574.0,2.8e-07]
[1732540165097,0.051205,97562.0,97561.0,0.02610054]
[1732540165306,0.412005,97562.0,97561.0,0.02610054]
[1732540165496,0.412405,97562.0,97561.0,0.02610054]
[1732540166499,0.051208,97557.0,97556.0,9.738e-05]
[1732540166891,0.051608,97557.0,97556.0,9.738e-05]
[1732540167501,0.23346161,97557.0,97556.0,9.738e-05]
[1732540167708,0.051608,97557.0,97556.0,9.738e-05]
[1732540168201,0.051608,97557.0,97540.0,0.35589738]
[1732540168202,0.051216,97541.0,97540.0,0.35589738]
[1732540168443,0.051216,97541.0,97531.0,0.02842255]
[1732540168444,0.051221,97532.0,97531.0,0.02842255]
[1732540168605,0.051223,97528.0,97527.0,0.0629]
[1732540168901,0.051223,97528.0,97526.0,0.02450393]
[1732540168902,0.051224,97527.0,97526.0,0.02450393]
[1732540169298,0.051624,97527.0,97526.0,0.02450393]
[1732540169504,0.051624,97527.0,97526.0,0.004]
[1732540169800,0.051226,97522.0,97521.0,0.3548]
[1732540170009,0.051226,97522.0,97507.0,0.032]
[1732540170299,0.18177875,97515.0,97510.0,0.10060843]
[1732540170551,0.18177875,97515.0,97507.0,0.032]
[1732540170698,0.00010177,97522.0,97509.0,0.3608]
[1732540170699,0.18163333,97517.0,97509.0,0.3608]
[1732540170895,0.15137209,97515.0,97509.0,0.3608]
[1732540171094,0.00010177,97522.0,97521.0,0.051227]
[1732540173305,0.00010177,97522.0,97521.0,0.358867]
[1732540173306,0.18169071,97522.0,97521.0,0.358867]
[1732540173605,0.18158894,97523.0,97522.0,0.051226]
[1732540173912,0.21185056,97536.0,97535.0,0.05122]
[1732540174198,0.21185056,97536.0,97518.0,0.0637]
[1732540174199,0.05122,97535.0,97534.0,0.05122]
[1732540174401,0.21185796,97536.0,97527.0,0.3608]
[1732540174613,0.21186913,97535.0,97534.0,0.05122]
[1732540174796,0.00051825,97535.0,97534.0,0.05122]
[1732540175009,0.21238712,97535.0,97534.0,0.05122]
[1732540175205,0.00051825,97535.0,97534.0,0.05122]
[1732540175805,0.05173825,97535.0,97534.0,0.04622]
[1732540176605,0.051223,97528.0,97527.0,0.3608]
[1732540176901,0.051623,97528.0,97527.0,0.412024]
[1732540177110,0.051623,97528.0,97527.0,0.3608]
[1732540177308,0.051623,97528.0,97514.0,0.02051143]
[1732540177309,0.051227,97520.0,97519.0,0.3608]
[1732540177807,0.051627,97520.0,97519.0,0.3608]
[1732540178006,0.051627,97520.0,97519.0,0.3558]
[1732540178205,0.412427,97520.0,97515.0,0.0332]
[1732540178403,0.05123,97516.0,97515.0,0.0332]
[1732540178601,0.05123,97516.0,97514.0,0.02051143]
[1732540178602,0.05123,97515.0,97514.0,0.02051143]
[1732540178808,0.05123,97515.0,97514.0,0.07174243]
[1732540179005,0.05163,97515.0,97514.0,0.02051143]
[1732540179798,0.05163,97515.0,97514.0,0.07174243]
[1732540180002,0.05163,97515.0,97514.0,0.02051143]
[1732540181699,0.05163,97515.0,97514.0,0.07174243]
[1732540182106,0.0004,97515.0,97514.0,0.07174243]
[1732540182605,0.2027186,97515.0,97514.0,0.17051143]
[1732540182911,0.05163,97515.0,97514.0,0.02051143]
[1732540183804,0.05163,97515.0,97510.0,0.0332]
[1732540183805,0.051232,97511.0,97510.0,0.0332]
[1732540184214,0.051632,97511.0,97510.0,0.0332]
[1732540184807,0.051632,97511.0,97500.0,0.60104062]
[1732540184808,0.051237,97502.0,97500.0,0.60104062]
[1732540185011,0.2022724,97502.0,97500.0,0.60012062]
[1732540185221,0.0004,97501.0,97500.0,0.60012062]
[1732540185600,0.15141822,97501.0,97500.0,0.60012062]